bitfinex/quotes_BTCUSD_20251208
["timestamp","ask_amount","ask_price","bid_price","bid_amount"]
[1765172942665,0.01828,91392.0,91391.0,0.03153436]
[1765172944406,0.01828,91392.0,91391.0,0.00323436]
[1765172944553,0.01828,91392.0,91391.0,0.04271436]
[1765172948893,0.001,91392.0,91391.0,0.04271436]
[1765172949095,5.548e-05,91419.0,91398.0,0.01094115]
[1765172949301,5.548e-05,91419.0,91400.0,0.24711838]
[1765172949302,0.01093876,91418.0,91400.0,0.24711838]
[1765172949531,5.548e-05,91419.0,91400.0,0.26922429]
[1765172949732,5.548e-05,91419.0,91400.0,0.29258429]
[1765172950985,0.002,91401.0,91400.0,0.29758429]
[1765172951587,0.003,91401.0,91400.0,0.31258429]
[1765172952354,0.003,91401.0,91400.0,0.32900636]
[1765172955697,0.003,91401.0,91400.0,0.65200636]
[1765172964149,0.003,91401.0,91400.0,0.62990045]
[1765172965430,0.003,91401.0,91400.0,0.65200636]
[1765172966181,0.003,91401.0,91400.0,0.62990045]
[1765172976613,0.003,91401.0,91400.0,0.30690045]
[1765172976747,0.003,91401.0,91400.0,0.29047838]
[1765172976953,0.003,91401.0,91400.0,0.30141642]
[1765172981500,0.003,91401.0,91400.0,5.66376233]
[1765172984278,0.003,91401.0,91400.0,1.36262233]
[1765172984707,0.003,91401.0,91400.0,0.64652233]
[1765172985086,0.003,91401.0,91400.0,0.62441642]
[1765172986873,0.003,91401.0,91400.0,0.64652233]
[1765172987076,0.003,91401.0,91400.0,2.95502233]
[1765172987209,0.003,91401.0,91400.0,5.64652233]
[1765172987653,0.003,91401.0,91400.0,5.66376233]
[1765172987811,0.003,91401.0,91400.0,5.64165642]
[1765172988029,0.003,91401.0,91400.0,5.66376233]
[1765172988916,0.003,91401.0,91400.0,2.29266233]
[1765172989454,0.003,91401.0,91400.0,5.66376233]
[1765172989845,0.003,91401.0,91400.0,4.68586233]
[1765172990242,0.003,91401.0,91400.0,2.89116233]
[1765172990501,0.003,91401.0,91400.0,0.66376233]
[1765172990745,0.003,91401.0,91400.0,3.83276233]
[1765172991557,0.003,91401.0,91400.0,5.66376233]
[1765172992276,0.003,91401.0,91400.0,2.59056233]
[1765172992478,0.003,91401.0,91400.0,1.20046233]
[1765172993630,0.003,91401.0,91400.0,3.12836233]
[1765172993973,0.003,91401.0,91400.0,1.59576233]
[1765172994179,0.003,91401.0,91400.0,1.34946233]
[1765172994589,0.003,91401.0,91400.0,1.35106233]
[1765172995083,0.003,91401.0,91400.0,1.31026233]
[1765172995500,0.003,91401.0,91400.0,1.37596233]
[1765172996666,0.003,91401.0,91400.0,3.26586233]
[1765172996961,0.003,91401.0,91400.0,1.37826233]
[1765172997665,0.003,91401.0,91400.0,2.90006233]
[1765172998582,0.003,91401.0,91400.0,0.66376233]
[1765172998748,0.003,91401.0,91400.0,3.65356233]
[1765172998949,0.003,91401.0,91400.0,0.32352233]
[1765173000495,0.003,91401.0,91400.0,0.64652233]
[1765173003450,0.003,91401.0,91400.0,0.32352233]
[1765173007607,0.003,91401.0,91400.0,5.64652233]
[1765173011126,0.003,91401.0,91400.0,0.64652233]
[1765173011350,0.003,91401.0,91400.0,0.7698444]
[1765173011563,0.003,91401.0,91400.0,0.6629444]
[1765173011937,0.003,91401.0,91400.0,0.64083849]
[1765173012474,0.003,91401.0,91400.0,0.6629444]
[1765173013577,0.003,91401.0,91400.0,0.64652233]
[1765173013816,0.003,91401.0,91400.0,0.30141642]
[1765173014004,0.003,91401.0,91400.0,0.07166]
[1765173016807,0.003,91401.0,91400.0,0.09376591]
[1765173016994,0.003,91401.0,91400.0,0.11564774]
[1765173018204,0.003,91401.0,91400.0,0.07166]
[1765173019480,0.003,91401.0,91400.0,0.11564774]
[1765173020832,0.003,91401.0,91400.0,0.14849495]
[1765173020988,0.003,91401.0,91400.0,5.14849495]
[1765173021199,0.003,91401.0,91400.0,5.13164094]
[1765173022054,0.003,91401.0,91400.0,5.12661312]
[1765173022685,0.003,91401.0,91400.0,5.44961312]
[1765173023568,0.003,91401.0,91400.0,0.65051312]
[1765173024137,0.003,91401.0,91400.0,0.65151312]
[1765173024444,0.003,91401.0,91400.0,0.44961312]
[1765173025215,0.003,91401.0,91400.0,5.44961312]
[1765173027121,5.548e-05,91419.0,91418.0,0.21877529]
[1765173027327,5.548e-05,91419.0,91418.0,0.2572512]
[1765173027545,5.548e-05,91419.0,91418.0,0.2819812]
[1765173028497,5.548e-05,91419.0,91418.0,0.25987529]
[1765173029186,5.548e-05,91419.0,91418.0,0.26087529]
[1765173029623,5.548e-05,91419.0,91418.0,0.26187529]
[1765173034307,5.548e-05,91419.0,91418.0,0.2839812]
[1765173044844,5.548e-05,91419.0,91418.0,0.26187529]
[1765173046055,5.548e-05,91419.0,91418.0,0.2839812]
[1765173051677,0.00122103,91425.0,91424.0,5.56386684]
[1765173051901,0.01024863,91461.0,91460.0,0.01093374]
[1765173052166,0.0102479,91465.0,91463.0,0.01093338]
[1765173052366,0.02026553,91469.0,91465.0,0.01093314]
[1765173052512,0.01093278,91468.0,91465.0,0.01093314]
[1765173052714,0.01254565,91468.0,91465.0,0.01093314]
[1765173053258,0.01260115,91468.0,91465.0,0.01093314]
[1765173053688,0.00166837,91468.0,91465.0,0.01093314]
[1765173053891,0.00166837,91468.0,91463.0,0.01093338]
[1765173054042,0.23125733,91468.0,91464.0,0.01093326]
[1765173054246,0.01642207,91467.0,91465.0,0.22959475]
[1765173054449,0.00266837,91468.0,91467.0,0.02876]
[1765173054618,0.01166837,91468.0,91467.0,0.02876]
[1765173054819,0.01166837,91468.0,91467.0,0.05281]
[1765173055038,0.00266837,91468.0,91467.0,0.05281]
[1765173055263,0.01366837,91468.0,91467.0,0.05281]
[1765173055434,0.00266837,91468.0,91467.0,0.05281]
[1765173055874,0.00966837,91468.0,91467.0,0.05281]
[1765173056526,0.00866837,91468.0,91467.0,0.05281]
[1765173056983,0.00866837,91468.0,91467.0,0.05381]
[1765173057950,0.00866837,91468.0,91467.0,0.02976]
[1765173062285,0.00866837,91468.0,91467.0,0.01323]
[1765173062653,0.02512837,91468.0,91467.0,0.001]
[1765173062849,0.05023671,91468.0,91467.0,0.001]
[1765173063056,0.02638671,91468.0,91467.0,0.001]
[1765173063465,0.00992671,91468.0,91467.0,0.001]
[1765173069436,0.00992671,91468.0,91467.0,0.04084]
[1765173077731,0.00992671,91468.0,91467.0,0.05254]
[1765173078437,0.00992671,91468.0,91467.0,0.02893]
[1765173079551,0.00992671,91468.0,91467.0,0.001]
[1765173080136,0.02528671,91468.0,91467.0,0.001]
[1765173084417,0.00992671,91468.0,91467.0,0.001]
[1765173084619,0.02528671,91468.0,91467.0,0.001]
[1765173087894,0.00992671,91468.0,91467.0,0.001]
[1765173091660,0.00992671,91468.0,91467.0,0.21965809]
[1765173091903,0.00992671,91468.0,91467.0,0.25931809]
[1765173092080,0.00992671,91468.0,91467.0,0.23496809]
[1765173094653,0.00992671,91468.0,91467.0,0.25931809]
[1765173095107,0.00992671,91468.0,91467.0,0.23496809]
[1765173097419,0.00992671,91468.0,91467.0,0.21965809]
[1765173098417,0.00992671,91468.0,91467.0,0.23496809]
[1765173098633,0.00992671,91468.0,91467.0,0.25931809]
[1765173099489,0.00831384,91468.0,91467.0,0.25931809]
[1765173099687,0.00831384,91468.0,91467.0,0.23496809]
[1765173100806,0.00831384,91468.0,91467.0,0.001]
[1765173101351,0.03140384,91468.0,91467.0,0.001]
[1765173101547,0.05537384,91468.0,91467.0,0.001]
[1765173102149,0.46309282,91468.0,91467.0,0.001]
[1765173102360,0.46309282,91468.0,91446.0,0.01093541]
[1765173102361,0.01093541,91446.0,91439.0,0.28685889]
[1765173102562,0.22964767,91445.0,91440.0,0.01093613]
[1765173102767,0.01093565,91444.0,91441.0,0.01093601]
[1765173102971,0.00161287,91444.0,91441.0,0.2296548]
[1765173103180,0.01093613,91440.0,91437.0,0.01093649]
[1765173103395,0.00161287,91440.0,91437.0,0.01093649]
[1765173103603,0.00161287,91440.0,91439.0,0.01651]
[1765173104021,0.00161287,91440.0,91439.0,0.03936]
[1765173104428,0.00766834,91440.0,91439.0,0.03936]
[1765173104869,0.00166834,91440.0,91439.0,0.03936]
[1765173105068,0.00305547,91440.0,91439.0,0.0612325]
[1765173105691,0.00305547,91440.0,91439.0,0.0622325]
[1765173106861,0.00305547,91440.0,91439.0,0.04036]
[1765173107822,0.00349456,91440.0,91439.0,0.04036]
[1765173112982,0.00349456,91440.0,91439.0,0.06246591]
[1765173113195,0.00349456,91440.0,91439.0,0.04036]
[1765173114835,0.00349456,91440.0,91439.0,0.06246591]
[1765173116156,0.00349456,91440.0,91439.0,0.04036]
[1765173120545,0.00349456,91440.0,91439.0,0.06246591]
[1765173121240,0.00349456,91440.0,91439.0,0.001]
[1765173121801,0.00349456,91440.0,91439.0,0.02385]
[1765173122244,0.00349456,91440.0,91439.0,0.03912]
[1765173123157,0.00349456,91440.0,91439.0,0.25784505]
[1765173123800,0.00349456,91440.0,91439.0,0.28428042]
[1765173123950,0.00349456,91440.0,91439.0,0.27995096]
[1765173124900,0.00049456,91440.0,91439.0,0.27895096]
[1765173125101,0.00049456,91440.0,91439.0,0.28195096]
[1765173125505,0.00049456,91440.0,91439.0,0.28595096]
[1765173127366,0.00049456,91440.0,91439.0,0.26384505]
[1765173127585,0.00049456,91440.0,91439.0,0.22572505]
[1765173128519,0.00049456,91440.0,91439.0,0.22272505]
[1765173128723,0.00049456,91440.0,91439.0,0.21972505]
[1765173129363,0.00049456,91440.0,91439.0,0.001]
[1765173129565,0.23023721,91440.0,91439.0,0.002]
[1765173129811,0.26905721,91440.0,91439.0,0.002]
[1765173129949,0.26905721,91440.0,91439.0,0.001]
[1765173130353,0.24639721,91440.0,91439.0,0.003]
[1765173130558,0.24639721,91440.0,91439.0,0.002]
[1765173130779,0.25733334,91440.0,91437.0,0.01093649]
[1765173130979,0.25850712,91440.0,91437.0,0.01093649]
[1765173131187,0.03978447,91440.0,91437.0,0.01093649]
[1765173131586,0.04278447,91440.0,91437.0,0.01093649]
[1765173131792,0.03978447,91440.0,91437.0,0.01093649]
[1765173131992,0.04278447,91440.0,91437.0,0.01093649]
[1765173132230,0.01093625,91439.0,91436.0,0.01093661]
[1765173133628,0.00166834,91440.0,91437.0,0.25426632]
[1765173133967,0.003,91439.0,91437.0,0.25426632]
[1765173134367,0.003,91439.0,91437.0,0.22966632]
[1765173134571,0.003,91439.0,91438.0,0.03995]
[1765173134794,0.00166834,91440.0,91439.0,0.21872505]
[1765173135132,0.00466834,91440.0,91439.0,0.21872505]
[1765173135307,0.00166834,91440.0,91439.0,0.21872505]
[1765173137039,0.00466834,91440.0,91439.0,0.21872505]
[1765173137245,0.00466834,91440.0,91439.0,0.25867505]
[1765173137407,0.00510743,91440.0,91439.0,0.25867505]
[1765173138424,0.00210743,91440.0,91439.0,0.25867505]
[1765173138963,0.00210743,91440.0,91437.0,0.01093649]
[1765173139164,0.00166834,91440.0,91437.0,0.01093649]
[1765173139512,0.0151,91438.0,91435.0,0.02817673]
[1765173140091,0.22974506,91439.0,91435.0,0.02817673]
[1765173140338,0.01102,91439.0,91435.0,0.02817673]
[1765173140541,0.01102,91439.0,91435.0,0.02917673]
[1765173140945,0.0151,91436.0,91435.0,0.001]
[1765173141143,0.01093708,91432.0,91428.0,0.01093756]
[1765173141315,0.01642207,91430.0,91428.0,0.01093756]
[1765173141725,0.01642207,91430.0,91429.0,0.21874897]
[1765173142902,0.01642207,91430.0,91428.0,0.01093756]
[1765173143091,0.01642207,91430.0,91428.0,0.01293756]
[1765173143712,0.01642207,91430.0,91428.0,0.01193756]
[1765173143941,0.01642207,91430.0,91429.0,0.001]
[1765173144464,0.01642207,91430.0,91428.0,0.01193756]
[1765173144789,0.01642207,91430.0,91428.0,0.01293756]
[1765173144976,0.01642207,91430.0,91429.0,0.21874897]
[1765173145385,0.01642207,91430.0,91429.0,0.21974897]
[1765173145951,0.0002342,91433.0,91431.0,0.21874234]
[1765173145952,0.01665627,91433.0,91431.0,0.21874234]
[1765173147121,0.01665627,91433.0,91431.0,0.21974234]
[1765173147841,0.01665627,91433.0,91431.0,0.001]
[1765173148249,0.01665627,91433.0,91432.0,0.21874179]
[1765173149284,0.0002342,91433.0,91432.0,0.21874179]
[1765173149605,0.0002342,91433.0,91432.0,0.21974179]
[1765173150938,0.0002342,91433.0,91432.0,0.23509179]
[1765173151149,0.0002342,91433.0,91432.0,0.2817977]
[1765173152479,0.0002342,91433.0,91432.0,0.25969179]
[1765173154026,0.0002342,91433.0,91432.0,0.2817977]
[1765173155483,0.0002342,91433.0,91432.0,0.29273323]
[1765173156811,0.0002342,91433.0,91432.0,0.29173323]
[1765173157376,0.0002342,91433.0,91432.0,0.29473323]
[1765173157583,0.0002342,91433.0,91432.0,0.27262732]
[1765173157992,0.0002342,91433.0,91432.0,0.29473323]
[1765173158655,0.0002342,91433.0,91432.0,0.29673323]
[1765173161537,0.0002342,91433.0,91432.0,0.01593553]
[1765173161749,0.0002342,91433.0,91432.0,0.005]
[1765173162283,0.0002342,91433.0,91432.0,0.003]
[1765173162484,0.0002342,91433.0,91432.0,0.03936]
[1765173162734,0.0002342,91433.0,91432.0,0.01754]
[1765173162926,0.0002342,91433.0,91432.0,0.001]
[1765173163148,0.0002342,91433.0,91430.0,0.01093732]
[1765173163498,0.0002342,91433.0,91432.0,0.001]
[1765173164765,0.0109372,91431.0,91428.0,0.03294916]
[1765173164907,0.0109372,91431.0,91430.0,0.001]
[1765173165335,0.0109372,91431.0,91428.0,0.03294916]
[1765173165541,0.01255007,91431.0,91427.0,0.01093768]
[1765173165749,0.01093732,91430.0,91427.0,0.01093768]
[1765173165974,0.02897214,91431.0,91427.0,0.01093768]
[1765173166380,0.01803494,91431.0,91428.0,0.01093756]
[1765173167061,0.01803494,91431.0,91429.0,0.21874897]
[1765173167260,0.00161287,91431.0,91429.0,0.24156897]
[1765173167678,0.00161287,91431.0,91430.0,0.02282]
[1765173169303,0.00161287,91431.0,91430.0,0.02382]
[1765173170055,0.00161287,91431.0,91430.0,0.04036]
[1765173172126,0.0002342,91433.0,91432.0,0.02210591]
[1765173172242,0.0002342,91433.0,91432.0,0.08334008]
[1765173173087,0.0002342,91433.0,91431.0,0.21874418]
[1765173173292,0.0002342,91433.0,91430.0,0.01093732]
[1765173173293,0.0002342,91433.0,91432.0,0.001]
[1765173174239,0.07672298,91433.0,91432.0,0.001]
[1765173174482,0.46224597,91433.0,91432.0,0.001]
[1765173174684,0.46224597,91433.0,91395.0,0.08902041]
[1765173174685,0.46224597,91433.0,91403.0,0.01093744]
[1765173174686,0.2188088,91404.0,91403.0,0.01093744]
[1765173174894,0.2188088,91404.0,91391.0,0.01094199]
[1765173174895,0.02743,91400.0,91391.0,0.01094199]
[1765173175104,0.02743,91400.0,91390.0,0.01094211]
[1765173175308,0.01094067,91402.0,91396.0,0.01094139]
[1765173175513,0.01641,91400.0,91397.0,0.01094127]
[1765173175716,0.23522838,91400.0,91391.0,0.0119]
[1765173175931,0.25775838,91400.0,91399.0,0.0016118]
[1765173176315,0.25937125,91400.0,91399.0,0.0016118]
[1765173176851,0.25937125,91400.0,91399.0,0.0026118]
[1765173177221,0.26437125,91400.0,91399.0,0.0026118]
[1765173177630,0.25937125,91400.0,91399.0,0.0026118]
[1765173177835,0.26537125,91400.0,91399.0,0.0016118]
[1765173178039,0.26737125,91400.0,91399.0,0.0016118]
[1765173179333,0.22843125,91400.0,91399.0,0.0016118]
[1765173179529,0.24412125,91400.0,91399.0,0.0016118]
[1765173179730,0.26874125,91400.0,91399.0,0.0016118]
[1765173180187,0.23812125,91400.0,91399.0,0.0016118]
[1765173180576,0.24112125,91400.0,91399.0,0.0016118]
[1765173180835,0.22543125,91400.0,91399.0,0.0016118]
[1765173181012,0.26374125,91400.0,91399.0,0.0016118]
[1765173182007,0.23912125,91400.0,91399.0,0.0016118]
[1765173182879,0.26374125,91400.0,91399.0,0.0016118]
[1765173183439,0.58674125,91400.0,91399.0,0.0016118]
[1765173183638,0.67146023,91400.0,91399.0,0.0016118]
[1765173184431,0.76932354,91400.0,91399.0,0.0016118]
[1765173184661,0.78560354,91400.0,91399.0,0.0016118]
[1765173184861,0.79654888,91400.0,91399.0,0.0016118]
[1765173185056,0.80454888,91400.0,91399.0,0.0016118]
[1765173185458,0.80254888,91400.0,91399.0,0.0016118]
[1765173185699,0.80754888,91400.0,91399.0,0.0016118]
[1765173186435,0.79954888,91400.0,91399.0,0.0016118]
[1765173186656,0.81354888,91400.0,91399.0,0.0016118]
[1765173187084,0.80854888,91400.0,91399.0,0.0016118]
[1765173187336,0.81354888,91400.0,91399.0,0.0016118]
[1765173190270,0.83697982,91400.0,91399.0,0.0016118]
[1765173192587,0.84714782,91400.0,91399.0,0.0016118]
[1765173193006,0.83697982,91400.0,91399.0,0.0016118]
[1765173193160,0.84714855,91400.0,91399.0,0.0016118]
[1765173193402,0.74928524,91400.0,91399.0,0.0016118]
[1765173196013,0.71692052,91400.0,91399.0,0.0016118]
[1765173196217,0.73911651,91400.0,91399.0,0.0016118]
[1765173196618,0.74928878,91400.0,91399.0,0.0016118]
[1765173197067,0.69792052,91400.0,91399.0,0.0016118]
[1765173197239,0.66426424,91400.0,91399.0,0.0016118]
[1765173197413,0.40418307,91400.0,91399.0,0.0016118]
[1765173197634,0.38074023,91400.0,91399.0,0.0016118]
[1765173198016,0.70374023,91400.0,91399.0,0.0016118]
[1765173201174,0.83693336,91400.0,91399.0,0.0016118]
[1765173202085,0.84712927,91400.0,91399.0,0.0016118]
[1765173202848,0.8864668,91400.0,91399.0,0.0016118]
[1765173203051,0.84712927,91400.0,91399.0,0.0016118]
[1765173203245,0.90612085,91400.0,91399.0,0.0016118]
[1765173203540,0.21888783,91371.0,91370.0,0.0004]
[1765173203750,0.21888783,91371.0,91370.0,0.00045548]
[1765173203751,0.25216783,91371.0,91370.0,0.00045548]
[1765173203960,0.27562783,91371.0,91370.0,0.00045548]
[1765173205316,0.27662783,91371.0,91370.0,0.00045548]
[1765173206057,0.28686194,91371.0,91370.0,0.00045548]
[1765173206219,0.28786194,91371.0,91370.0,0.00045548]
[1765173207874,0.22088783,91371.0,91370.0,0.00045548]
[1765173208862,0.002,91371.0,91370.0,0.04089548]
[1765173209180,0.002,91371.0,91370.0,0.04174523]
[1765173210941,0.002,91371.0,91370.0,0.00130523]
[1765173211531,0.018,91371.0,91370.0,0.00130523]
[1765173212840,0.05170356,91371.0,91370.0,0.00130523]
[1765173213126,0.07389955,91371.0,91370.0,0.00130523]
[1765173213621,0.05170356,91371.0,91370.0,0.00130523]
[1765173214468,0.07389955,91371.0,91370.0,0.00130523]
[1765173214929,0.05170356,91371.0,91370.0,0.00130523]
[1765173217034,0.07389955,91371.0,91370.0,0.00130523]
[1765173217238,0.05170356,91371.0,91370.0,0.00130523]
[1765173217965,0.06272356,91371.0,91370.0,0.00130523]
[1765173218630,0.02326356,91371.0,91370.0,0.00130523]
[1765173218838,0.04054356,91371.0,91370.0,0.00130523]
[1765173219192,0.02326356,91371.0,91370.0,0.00130523]
[1765173219386,0.04054356,91371.0,91370.0,0.00130523]
[1765173220219,0.0303,91371.0,91370.0,0.00130523]
[1765173220431,0.05654758,91371.0,91370.0,0.00130523]
[1765173221149,0.0463,91371.0,91370.0,0.00130523]
[1765173222248,0.06891,91371.0,91370.0,0.00130523]
[1765173225061,0.07915684,91371.0,91370.0,0.00130523]
[1765173226173,0.06891,91371.0,91370.0,0.00130523]
[1765173226372,0.07915672,91371.0,91370.0,0.00130523]
[1765173226558,0.14167971,91371.0,91370.0,0.00130523]
[1765173227139,0.1638757,91371.0,91370.0,0.00130523]
[1765173227468,0.1628757,91371.0,91370.0,0.00130523]
[1765173227912,0.1658757,91371.0,91370.0,0.00130523]
[1765173228913,0.1648757,91371.0,91370.0,0.00130523]
[1765173229299,0.1658757,91371.0,91370.0,0.00130523]
[1765173231416,0.14367971,91371.0,91370.0,0.00130523]
[1765173232028,0.12639971,91371.0,91370.0,0.00130523]
[1765173232255,0.13343299,91371.0,91370.0,0.00130523]
[1765173232771,0.14368807,91371.0,91370.0,0.00130523]
[1765173233158,0.14368806,91371.0,91370.0,0.00130523]
[1765173233362,0.14368789,91371.0,91370.0,0.00130523]
[1765173234975,0.13343299,91371.0,91370.0,0.00130523]
[1765173235200,0.14368798,91371.0,91370.0,0.00130523]
[1765173235813,0.13343299,91371.0,91370.0,0.00130523]
[1765173236939,0.15562898,91371.0,91370.0,0.00130523]
[1765173237371,0.13343299,91371.0,91370.0,0.00130523]
[1765173237747,0.0483,91371.0,91370.0,0.00130523]
[1765173238284,0.07154,91371.0,91370.0,0.00130523]
[1765173239489,0.08179487,91371.0,91370.0,0.00130523]
[1765173239920,0.07154,91371.0,91370.0,0.00130523]
[1765173242413,0.08179578,91371.0,91370.0,0.00130523]
[1765173247029,0.08179578,91371.0,91370.0,0.04041523]
[1765173247030,0.02042207,91371.0,91370.0,0.04041523]
[1765173247181,0.004,91371.0,91370.0,0.04041523]
[1765173247382,0.004,91371.0,91370.0,0.06252114]
[1765173247781,0.01094331,91380.0,91375.0,0.01094391]
[1765173248099,0.01094331,91380.0,91379.0,0.00058598]
[1765173248902,0.01294331,91380.0,91379.0,0.00058598]
[1765173250078,0.01694331,91380.0,91379.0,0.00058598]
[1765173250574,0.01494331,91380.0,91379.0,0.00058598]
[1765173250851,0.006,91380.0,91379.0,0.00058598]
[1765173252510,0.006,91380.0,91379.0,0.21945464]
[1765173252733,0.006,91380.0,91379.0,0.26957464]
[1765173253136,0.006,91380.0,91379.0,0.02733598]
[1765173253336,0.006,91380.0,91379.0,0.00058598]
[1765173256492,0.006,91380.0,91379.0,0.01566598]
[1765173256690,0.006,91380.0,91379.0,0.03903598]
[1765173257456,0.006,91380.0,91379.0,0.01566598]
[1765173257662,0.006,91380.0,91379.0,0.03903598]
[1765173258291,0.006,91380.0,91379.0,0.01566598]
[1765173259831,0.006,91380.0,91379.0,0.00058598]
[1765173260159,0.04532,91380.0,91379.0,0.00058598]
[1765173260285,0.02101,91380.0,91379.0,0.00058598]
[1765173261862,0.006,91380.0,91379.0,0.00058598]
[1765173263571,0.02328,91380.0,91379.0,0.00058598]
[1765173264181,0.02328,91380.0,91379.0,0.05070598]
[1765173266692,0.02328,91380.0,91379.0,0.26957464]
[1765173266893,0.006,91380.0,91379.0,0.26957464]
[1765173267095,0.006,91380.0,91379.0,0.29168055]
[1765173267835,0.004,91380.0,91379.0,0.29168055]
[1765173267976,0.01094199,91391.0,91388.0,0.01094235]
[1765173268392,0.01728,91393.0,91390.0,0.23392232]
[1765173268590,0.02822163,91394.0,91391.0,0.02602199]
[1765173268810,0.02822163,91394.0,91393.0,0.00987]
[1765173269021,0.01728,91394.0,91393.0,0.02495]
[1765173270231,0.02028,91394.0,91393.0,0.02495]
[1765173270460,0.02228,91394.0,91393.0,0.02495]
[1765173271935,0.02228,91394.0,91393.0,0.04832]
[1765173272200,0.005,91394.0,91393.0,0.04832]
[1765173275223,0.005,91394.0,91393.0,0.02495]
[1765173275427,0.005,91394.0,91393.0,0.00987]
[1765173279550,0.01094175,91393.0,91390.0,0.01094211]
[1765173279750,0.01094187,91392.0,91388.0,0.02261235]
[1765173279957,0.22978138,91392.0,91388.0,0.02261235]
[1765173280274,0.005,91394.0,91388.0,0.02261235]
[1765173280275,0.005,91394.0,91391.0,0.01508]
[1765173280477,0.005,91394.0,91393.0,0.01167]
[1765173280857,0.003,91394.0,91393.0,0.01167]
[1765173281478,0.22977167,91396.0,91393.0,0.01167]
[1765173282064,0.002,91394.0,91393.0,0.01167]
[1765173282449,0.003,91394.0,91393.0,0.01167]
[1765173282644,0.01094139,91396.0,91393.0,0.01167]
[1765173282849,0.01294139,91396.0,91393.0,0.02261175]
[1765173283097,0.01694139,91396.0,91393.0,0.02261175]
[1765173283315,0.01294139,91396.0,91393.0,0.02261175]
[1765173283463,0.21883035,91395.0,91393.0,0.01167]
[1765173284704,0.003,91394.0,91393.0,0.01167]
[1765173284927,0.002,91394.0,91393.0,0.01167]
[1765173285253,0.22283035,91395.0,91393.0,0.01167]
[1765173285463,0.22483035,91395.0,91393.0,0.01167]
[1765173285865,0.22083035,91395.0,91393.0,0.01167]
[1765173286266,0.003,91394.0,91393.0,0.01167]
[1765173286466,0.22083035,91395.0,91393.0,0.01167]
[1765173287492,0.21883035,91395.0,91393.0,0.01167]
[1765173287694,0.002,91394.0,91393.0,0.01167]
[1765173288302,0.22283035,91395.0,91393.0,0.01041]
[1765173288558,0.22083035,91395.0,91393.0,0.01041]
[1765173288849,0.003,91394.0,91393.0,0.01041]
[1765173289134,0.23177186,91395.0,91391.0,0.01117635]
[1765173289437,0.23577186,91395.0,91391.0,0.01117635]
[1765173289590,0.23177186,91395.0,91391.0,0.01117635]
[1765173290036,0.2297762,91394.0,91391.0,0.00023436]
[1765173290587,0.2188373,91393.0,91391.0,0.00023436]
[1765173290995,0.01546,91392.0,91391.0,0.00023436]
[1765173291195,0.03807,91392.0,91391.0,0.00023436]
[1765173292405,0.01946,91392.0,91391.0,0.00023436]
[1765173293968,0.004,91392.0,91391.0,0.00023436]
[1765173294395,0.04207,91392.0,91391.0,0.00023436]
[1765173295553,0.004,91392.0,91391.0,0.00023436]
[1765173297724,0.04389,91392.0,91391.0,0.00023436]
[1765173298946,0.06608599,91392.0,91391.0,0.00023436]
[1765173299095,0.20868783,91392.0,91391.0,0.00023436]
[1765173299299,0.21894734,91392.0,91391.0,0.00023436]
[1765173299916,0.21894405,91392.0,91391.0,0.00023436]
[1765173300357,0.250809,91392.0,91391.0,0.00023436]
[1765173300557,0.247809,91392.0,91391.0,0.00023436]
[1765173300731,0.572809,91392.0,91391.0,0.00023436]
[1765173300938,0.576809,91392.0,91391.0,0.00023436]
[1765173301110,0.574809,91392.0,91391.0,0.00023436]
[1765173301414,0.576809,91392.0,91391.0,0.00023436]
[1765173301647,0.46338416,91392.0,91391.0,0.00023436]
[1765173302046,0.46738416,91392.0,91391.0,0.00023436]
[1765173302433,0.49181416,91392.0,91391.0,0.00023436]
[1765173302673,0.51201015,91392.0,91391.0,0.00023436]
[1765173302876,0.51501015,91392.0,91391.0,0.00023436]
[1765173303058,0.51101015,91392.0,91391.0,0.00023436]
[1765173303470,0.51201015,91392.0,91391.0,0.00023436]
[1765173303673,0.48781416,91392.0,91391.0,0.00023436]
[1765173303988,0.49081416,91392.0,91391.0,0.00023436]
[1765173304220,0.48881416,91392.0,91391.0,0.00023436]
[1765173304705,0.49081416,91392.0,91391.0,0.00023436]
[1765173304899,0.60051922,91392.0,91391.0,0.00023436]
[1765173305474,0.49081416,91392.0,91391.0,0.00023436]
[1765173312617,0.51301015,91392.0,91391.0,0.00023436]
[1765173322218,0.37112117,91392.0,91391.0,0.00023436]
[1765173322424,0.005,91392.0,91391.0,0.03919436]
[1765173323305,0.01094163,91394.0,91391.0,0.03919436]
[1765173323527,0.002,91392.0,91391.0,0.03919436]
[1765173323734,0.003,91392.0,91391.0,0.03919436]
[1765173323880,0.003,91392.0,91391.0,0.01626436]
[1765173324094,0.003,91392.0,91391.0,0.00023436]
[1765173325368,0.001,91392.0,91391.0,0.00023436]
[1765173325746,0.003,91392.0,91391.0,0.00023436]
[1765173327620,0.003,91392.0,91391.0,0.21907428]
[1765173327797,0.003,91392.0,91391.0,0.02316436]
[1765173327940,0.003,91392.0,91391.0,0.03919436]
[1765173328528,0.003,91392.0,91391.0,0.00023436]
[1765173329045,0.003,91392.0,91391.0,0.25803428]
[1765173329259,0.003,91392.0,91391.0,0.28014019]
[1765173329735,0.003,91392.0,91391.0,0.29742019]
[1765173330315,0.001,91392.0,91391.0,0.29742019]
[1765173330519,0.02822008,91407.0,91403.0,0.01094055]
[1765173330716,0.0109402,91406.0,91403.0,0.01094055]
[1765173330920,0.0109402,91406.0,91404.0,0.01156]
[1765173331949,0.22974457,91406.0,91404.0,0.01156]
[1765173332149,0.01094067,91402.0,91399.0,0.01094103]
[1765173332379,0.01094044,91404.0,91400.0,0.01094091]
[1765173332754,0.01094044,91404.0,91401.0,0.01156]
[1765173332999,0.01094032,91405.0,91402.0,0.01094067]
[1765173333350,0.01094044,91404.0,91400.0,0.01094091]
[1765173334140,0.01294044,91404.0,91400.0,0.01094091]
[1765173334345,0.002,91404.0,91401.0,0.26424528]
[1765173334961,0.002,91404.0,91401.0,0.04543079]
[1765173335445,0.2481711,91405.0,91401.0,0.04543079]
[1765173335662,0.2481711,91405.0,91394.0,0.21883265]
[1765173335663,0.01094091,91400.0,91396.0,0.01094139]
[1765173335975,0.01094091,91400.0,91393.0,0.03285408]
[1765173335976,0.22977051,91396.0,91393.0,0.03285408]
[1765173336172,0.21883731,91393.0,91387.0,0.01094247]
[1765173336423,0.21883731,91393.0,91384.0,0.0328575]
[1765173336624,0.21883731,91393.0,91381.0,0.23864694]
[1765173336625,0.01519,91392.0,91383.0,0.01094295]
[1765173336921,0.01519,91392.0,91381.0,0.00884]